[Event "29th Bosnjaci Open 2025"]
[Site "Bosnjaci"]
[Date "2025.01.03"]
[Round "1.19"]
[White "Jusup, Matej"]
[Black "Benko, Bostjan"]
[Result "1-0"]
[ECO "B13"]
[WhiteElo "2238"]
[BlackElo "1867"]
[Annotator "TA"]
[PlyCount "83"]
[EventDate "2025.01.04"]
[EventType "swiss"]
[EventCountry "CRO"]
[SourceTitle "playchess.com"]
[Source "ChessBase"]
[SourceQuality "1"]
[TimeControl "5400+30"]

{[%evp 13,82,28,32,39,38,30,53,11,17,22,42,41,68,35,75,62,81,70,64,24,50,40,48,32,39,36,77,62,107,94,98,83,81,79,77,76,72,0,171,189,193,183,186,166,248,249,238,214,365,187,184,165,152,192,258,222,452,448,401,318,322,326,348,332,2112,1365,6411,6363,29998,29999,29999]} 1. e4 {[%emt 0:00:04]} c6 {[%emt 0:00:48]} 2. d4 {[%emt 0:00:47]} d5 {[%emt 0:00:07]} 3. exd5 {[%emt 0:00:21]} cxd5 {[%emt 0:00:07]} 4. Bd3 {[%emt 0:00:14]} Nc6 {[%emt 0:00:08]} 5. c3 {[%emt 0:00:13]} Nf6 {[%emt 0:00:22]} 6. Bf4 {[%emt 0:00:14]} g6 {[%emt 0:00:06]} 7. Nf3 {[%emt 0:00:17][%cal Bg1f3,Bf3e5,Be5d3,Bd3c5][%mdl 32]} Bf5 {[%emt 0:00:45]} 8. Bxf5 {[%emt 0:02:14]} gxf5 {[%emt 0:00:03]} 9. Ne5 {[%emt 0:00:26]} Qb6 {[%emt 0:01:26]} 10. Qb3 {[%emt 0:00:31]} e6 {[%emt 0:07:19]} 11. Nd3 {[%emt 0:00:44]} Nd7 {[%emt 0:03:42]} 12. O-O {[%emt 0:02:47]} Qa6 {[%emt 0:02:49][%cal Oc6a5]} 13. Qd1 {[%emt 0:01:35]} (13. Re1 $5) 13... h5 {[%emt 0:02:29]} 14. a4 {[%emt 0:01:59]} Na5 {[%emt 0:01:46]} 15. b4 {[%emt 0:04:48]} Nc4 {[%emt 0:00:14]} 16. Nc5 {[%emt 0:00:27]} Qc6 {[%emt 0:03:12][%cal Rd7c5]} 17. Nd2 {[%emt 0:07:23]} Bd6 {[%emt 0:06:32]} 18. Bxd6 {[%emt 0:19:17]} Nxd6 {[%emt 0:01:59]} 19. Qe2 {[%emt 0:01:08]} Ne4 {[%emt 0:07:10]} 20. Ndxe4 {[%emt 0:01:40]} fxe4 {[%emt 0:04:57]} 21. f3 {[%emt 0:01:16][%cal Rf3e4] White is much more active.} Nxc5 {[%emt 0:06:06]} 22. dxc5 {[%emt 0:01:21] fxe4 would now be deadly.} f5 {[%emt 0:02:50]} 23. fxe4 {[%emt 0:01:19]} dxe4 {[%emt 0:00:05]} 24. Rad1 {[%emt 0:00:53]} Rd8 {[%emt 0:00:52] Repels Rd6} 25. Qc4 {[%emt 0:07:59]} (25. a5 $16) 25... Rd5 $2 {[%emt 0:01:44]} (25... Ke7 $11 {and Black has nothing to worry.}) 26. Rxd5 $18 {[%emt 0:06:34]} exd5 {[%emt 0:01:38][%mdl 4096] Endgame KQR-KQR} 27. Qd4 $36 {[%emt 0:00:22][%mdl 2048] White is really pushing.} O-O {[%emt 0:07:08]} 28. Qe5 {[%emt 0:06:57]} b6 {[%emt 0:00:00]} (28... Qf6 $142 29. Qxf6 (29. Qxd5+ Kg7 $14) 29... Rxf6) 29. Rd1 {[%emt 0:12:54]} ({Resist} 29. Rxf5 $6 Rxf5 30. Qxf5 bxc5) 29... bxc5 {[%emt 0:06:18]} 30. b5 {[%emt 0:00:12]} (30. Qxd5+ Qxd5 31. Rxd5 cxb4 32. cxb4 Kg7 $14) 30... Qb6 $2 {[%emt 0:02:29]} (30... Qf6 31. Qxf6 (31. Rxd5 h4 $18) (31. Qxd5+ Rf7 $16) 31... Rxf6) 31. Qxd5+ {[%emt 0:05:39]} (31. Rxd5 $142 c4+ 32. Kf1) 31... Rf7 {[%emt 0:01:01]} 32. c4 {[%emt 0:04:44]} Qc7 {[%emt 0:11:06]} 33. Qd8+ {[%emt 0:00:34]} Kh7 {[%emt 0:00:07]} (33... Qxd8 {keeps fighting.} 34. Rxd8+ Kg7) 34. Qg5 {[%emt 0:02:10]} Qe5 $2 {[%emt 0:00:18]} (34... Qe7 35. Qxh5+ Kg7) 35. Qxh5+ {[%emt 0:00:36]} Kg7 {[%emt 0:00:06]} 36. Rd8 {[%emt 0:03:29]} Qa1+ {[%emt 0:01:18] [#]} 37. Kf2 $1 {[%emt 0:00:05]} Qb2+ {[%emt 0:00:07]} 38. Kg3 {[%emt 0:01:16]} f4+ $2 {[%emt 0:01:58]} (38... Qc3+ 39. Kh4 Qf6+ 40. Qg5+ Qxg5+ 41. Kxg5 f4) 39. Kh3 {[%emt 0:00:25]} Qc3+ {[%emt 0:05:24]} 40. Kg4 {[%emt 0:00:48] White wants to mate with Rh8.} Kf6 {[%emt 0:03:13]} 41. Qh6+ {[%emt 0:00:55]} Ke7 {[%emt 0:00:20]} 42. Qd6# {[%emt 0:00:06]} 1-0

[Event "29th Bosnjaci Open 2025"]
[Site "Bosnjaci"]
[Date "2025.01.03"]
[Round "1.20"]
[White "Tomljenovic, Mile"]
[Black "Sipic, Hrvoje"]
[Result "0-1"]
[ECO "B50"]
[WhiteElo "1865"]
[BlackElo "2213"]
[Annotator "TA"]
[PlyCount "36"]
[EventDate "2025.01.04"]
[EventType "swiss"]
[EventCountry "CRO"]
[SourceTitle "playchess.com"]
[Source "ChessBase"]
[SourceQuality "1"]
[TimeControl "5400+30"]

{[%evp 10,36,11,13,51,0,4,8,5,0,0,14,6,4,13,-7,11,0,0,-56,-25,-555,-541,-546,-548,-573,-564,-561,-523]} 1. e4 {[%emt 0:00:03]} c5 {[%emt 0:00:31]} 2. Nc3 {[%emt 0:00:10]} d6 {[%emt 0:00:16]} 3. Nf3 {[%emt 0:00:13]} Nf6 {[%emt 0:00:16]} 4. Bc4 {[%emt 0:00:39]} Nc6 {[%emt 0:00:27]} 5. d3 {[%emt 0:00:24]} Bg4 {[%emt 0:01:04][%cal Bc8g4,Bg4h5,Bh5g6][%mdl 32]} 6. h3 {[%emt 0:00:23]} Bh5 {[%emt 0:00:30]} 7. Bb5 {[%emt 0:00:52]} (7. g4 $14 {was preferrable.} Bg6 8. g5) 7... e6 $11 {[%emt 0:02:39]} 8. g4 {[%emt 0:03:34]} Bg6 {[%emt 0:00:13] The position is equal.} 9. e5 {[%emt 0:01:26]} (9. Bxc6+ bxc6 10. Qe2 Nd7) 9... Nd7 {[%emt 0:05:39]} 10. Bxc6 {[%emt 0:01:13]} bxc6 {[%emt 0:00:09]} 11. exd6 $1 {[%emt 0:00:22]} Bxd6 {[%emt 0:00:15]} 12. Ne4 {[%emt 0:01:45]} Be7 {[%emt 0:00:40]} 13. b3 {[%emt 0:01:01]} O-O {[%emt 0:02:29]} 14. Bb2 {[%emt 0:01:16]} (14. O-O $1 $11) 14... c4 {[%emt 0:13:26]} 15. Ne5 $2 {[%emt 0:06:59][%mdl 8192] [#] Loses the game.} (15. bxc4 $11 f5 16. Ned2) 15... Nxe5 $19 {[%emt 0:01:13] Black is clearly winning.} 16. Bxe5 {[%emt 0:02:17]} Bxe4 {[%emt 0:00:35]} 17. O-O {[%emt 0:02:25]} cxd3 {[%emt 0:00:37]} 18. cxd3 {[%emt 0:00:22]} Qxd3 {[%emt 0:00:32] Weighted Error Value: White=0.65/Black=0.09 (flawless) .  Loses game:     	White=1     	---        Mistake:       	White=2     	---        Inaccurate:     	---       	Black=1      OK:         	White=3     	Black=6      Strong:       	White=1     	---} 0-1

[Event "29th Bosnjaci Open 2025"]
[Site "Bosnjaci"]
[Date "2025.01.04"]
[Round "2.1"]
[White "Saric, Ante"]
[Black "Kanizaj, Benjamin"]
[Result "1-0"]
[ECO "E18"]
[WhiteElo "2483"]
[BlackElo "2096"]
[Annotator "TA"]
[PlyCount "83"]
[EventDate "2025.01.04"]
[EventType "swiss"]
[EventCountry "CRO"]
[SourceTitle "playchess.com"]
[Source "ChessBase"]
[SourceQuality "1"]
[TimeControl "5400+30"]

{[%evp 19,83,78,130,129,129,131,128,121,144,136,138,125,123,122,121,117,127,122,127,126,131,130,142,129,153,143,155,148,160,154,165,170,168,175,221,200,213,208,228,229,290,288,388,310,318,313,302,308,6230,7546,29961,29966,29964,29965,29969,29970,29970,29972,29972,29971,29976,29977,29978,29979,29979,29977]} 1. Nf3 {[%emt 0:00:11]} Nf6 {[%emt 0:00:34]} 2. c4 {[%emt 0:00:08]} e6 {[%emt 0:00:39]} 3. g3 {[%emt 0:02:47]} d5 {[%emt 0:01:31]} 4. Bg2 {[%emt 0:00:21]} Be7 {[%emt 0:00:27]} 5. d4 {[%emt 0:00:15]} O-O {[%emt 0:00:26]} 6. Nc3 {[%emt 0:02:19]} b6 {[%emt 0:18:05]} 7. cxd5 {[%emt 0:00:51]} exd5 {[%emt 0:07:17]} 8. Ne5 {[%emt 0:00:26]} Bb7 {[%emt 0:04:08]} 9. O-O {[%emt 0:01:21]} Nbd7 {[%emt 0:07:10]} 10. Qa4 {[%emt 0:00:21]} c5 {[%emt 0:19:41]} (10... Nb8 $142) 11. Nxd7 $16 {[%emt 0:00:26]} Qxd7 {[%emt 0:00:35]} 12. Qxd7 {[%emt 0:00:12]} Nxd7 {[%emt 0:00:05]} 13. Bxd5 {[%emt 0:22:09]} Bxd5 {[%emt 0:05:49]} 14. Nxd5 {[%emt 0:00:10]} Bd6 {[%emt 0:01:53]} 15. Rd1 {[%emt 0:04:02]} cxd4 {[%emt 0:06:48]} 16. Bf4 {[%emt 0:04:49] White is more active.} Bxf4 {[%emt 0:01:27]} 17. Nxf4 {[%emt 0:00:08]} Rfd8 {[%emt 0:01:40]} 18. Rxd4 {[%emt 0:00:14]} Nf6 {[%emt 0:01:41]} 19. Rxd8+ {[%emt 0:00:47]} Rxd8 {[%emt 0:00:06][%mdl 4096] Endgame KRN-KRN. White is a pawn up.} 20. Rc1 {[%emt 0:00:04]} g6 {[%emt 0:01:16]} 21. Nd3 {[%emt 0:00:25]} Rd5 {[%emt 0:03:08]} 22. f3 {[%emt 0:01:34]} Kf8 {[%emt 0:03:41]} 23. Kf2 {[%emt 0:00:57]} Ke8 {[%emt 0:03:18]} 24. Rc3 {[%emt 0:02:57]} Nd7 {[%emt 0:02:25]} 25. e4 {[%emt 0:02:29]} Ra5 {[%emt 0:02:28]} 26. a3 {[%emt 0:00:09]} Nc5 {[%emt 0:00:37]} (26... Ne5 {keeps fighting.} 27. Nxe5 Rxe5) 27. Nxc5 $18 {[%emt 0:02:15]} bxc5 {[%emt 0:00:14] KR-KR. White is a pawn up.} 28. Ke3 {[%emt 0:00:15]} Rb5 {[%emt 0:00:50]} 29. b3 {[%emt 0:00:05]} Kd7 {[%emt 0:01:38]} 30. Kd3 {[%emt 0:00:28]} Kc6 {[%emt 0:00:06]} 31. Kc4 {[%emt 0:07:48]} a5 {[%emt 0:00:25][%cal Ba7a5,Ba5a4][%mdl 32]} 32. Rd3 {[%emt 0:03:08][%cal Od3d6]} a4 {[%emt 0:02:36]} 33. e5 {[%emt 0:00:57] Hoping for Rd6+.} (33. bxa4 Rb1 34. a5 Rc1+ 35. Rc3 Rd1 $16) 33... Rxb3 $2 {[%emt 0:01:47]} (33... Ra5 34. Rd6+ Kc7) 34. Rxb3 {[%emt 0:00:06]} axb3 {[%emt 0:00:02]} 35. Kxb3 {[%emt 0:00:05] KP-KP. White is a pawn up.} Kd5 {[%emt 0:00:27]} 36. Kc3 {[%emt 0:05:51]} Kxe5 {[%emt 0:00:06]} 37. Kc4 {[%emt 0:00:06]} Kd6 {[%emt 0:00:04]} 38. a4 {[%emt 0:00:05][%cal Ba3a4,Ba4a5][%mdl 32]} Kc6 {[%emt 0:00:37]} 39. a5 {[%emt 0:00:09]} f6 {[%emt 0:03:12]} 40. f4 {[%emt 0:02:14][%cal Bf3f4,Bf4f5][%mdl 32]} g5 {[%emt 0:00:55]} 41. f5 {[%emt 0:01:23]} h5 {[%emt 0:00:32]} 42. h3 {[%emt 0:01:04]} 1-0

[Event "29th Bosnjaci Open 2025"]
[Site "Bosnjaci"]
[Date "2025.01.04"]
[Round "2.2"]
[White "Konjevic, Nikola"]
[Black "Culum, Sanjin"]
[Result "0-1"]
[ECO "B51"]
[WhiteElo "2095"]
[BlackElo "2446"]
[Annotator "TA"]
[PlyCount "110"]
[EventDate "2025.01.04"]
[EventType "swiss"]
[EventCountry "CRO"]
[SourceTitle "playchess.com"]
[Source "ChessBase"]
[SourceQuality "1"]
[TimeControl "5400+30"]

{[%evp 9,110,0,20,16,8,25,24,14,21,18,12,0,12,-8,14,-3,5,11,0,-8,14,-1,0,-10,0,-37,0,-58,-8,-16,-18,-35,-36,-29,-23,-45,-25,-42,-16,-26,-20,-29,-17,-27,-20,-65,-57,-52,-58,-59,-56,-67,-62,-62,-53,-79,-81,-81,-81,-81,-78,-108,-108,-147,-139,-150,-135,-162,-165,-207,-233,-491,-743,-719,-718,-745,-979,-669,-512,-1126,-872,-1758,-1726,-1056,-1008,-1000,0,-6465,-6322,-29979,-29978,-29981,-29982,-29982,-29983,-29984,-29985,-29985,-29986,-29986,-29987,-29987,-29988]} 1. e4 {[%emt 0:00:04]} c5 {[%emt 0:00:08]} 2. Nf3 {[%emt 0:00:09]} d6 {[%emt 0:00:05]} 3. Bb5+ {[%emt 0:00:12]} Nd7 {[%emt 0:00:06]} 4. d4 {[%emt 0:02:31]} cxd4 {[%emt 0:00:12]} 5. Nxd4 {[%emt 0:00:02]} Ngf6 {[%emt 0:02:36]} 6. O-O {[%emt 0:00:04]} a6 {[%emt 0:01:30]} 7. Bd3 {[%emt 0:00:19]} Nc5 {[%emt 0:00:31]} 8. Nc3 {[%emt 0:02:33]} g6 {[%emt 0:09:11]} 9. Re1 {[%emt 0:33:08]} Bg7 {[%emt 0:00:37]} 10. h3 {[%emt 0:02:00]} O-O {[%emt 0:03:15]} 11. Bf1 {[%emt 0:00:40]} Bd7 {[%emt 0:03:29]} 12. Nb3 {[%emt 0:01:51]} Na4 {[%emt 0:07:34]} 13. Nxa4 {[%emt 0:04:16]} Bxa4 {[%emt 0:00:18]} 14. Bd3 {[%emt 0:11:19]} Rc8 {[%emt 0:05:42]} 15. Rb1 {[%emt 0:00:44]} Nd7 {[%emt 0:06:12]} 16. Be3 {[%emt 0:03:43]} Ne5 {[%emt 0:02:53]} 17. Nd4 {[%emt 0:07:47]} Bd7 {[%emt 0:07:47]} 18. Nf3 {[%emt 0:05:27]} (18. Bf1 $11) 18... Nc4 {[%emt 0:03:16]} (18... Nxf3+ $15 19. Qxf3 Qa5) 19. Bxc4 {[%emt 0:01:41]} Rxc4 {[%emt 0:00:05]} 20. Bd4 {[%emt 0:05:07]} e5 {[%emt 0:02:09]} 21. Bc3 {[%emt 0:01:22]} Be6 {[%emt 0:00:24]} 22. Nd2 {[%emt 0:02:56]} Rc8 {[%emt 0:03:24]} 23. a3 {[%emt 0:00:26]} d5 {[%emt 0:03:19]} 24. exd5 {[%emt 0:00:25]} Qxd5 {[%emt 0:00:14]} 25. Nf1 {[%emt 0:03:29]} Qb5 {[%emt 0:05:47]} 26. Ne3 {[%emt 0:01:10]} Rfd8 {[%emt 0:00:17]} 27. Qe2 {[%emt 0:00:02]} Qxe2 {[%emt 0:00:35]} 28. Rxe2 {[%emt 0:00:07]} f6 {[%emt 0:00:11]} 29. Ree1 {[%emt 0:01:25]} Kf7 {[%emt 0:02:39]} 30. Rbd1 {[%emt 0:01:20]} Bh6 {[%emt 0:01:33]} 31. Rxd8 {[%emt 0:00:38]} Rxd8 {[%emt 0:00:02]} 32. Rd1 {[%emt 0:00:05]} Rxd1+ {[%emt 0:00:53]} 33. Nxd1 $17 {[%emt 0:00:03][%mdl 4096] Endgame KBB-KBN} Bf5 {[%emt 0:01:14]} 34. Ne3 {[%emt 0:00:05]} Be4 {[%emt 0:00:15]} 35. Be1 {[%emt 0:03:47]} Ke6 {[%emt 0:01:57] Black is more active.} 36. c3 {[%emt 0:01:05]} Bd3 {[%emt 0:02:38]} 37. Bd2 {[%emt 0:00:49]} f5 {[%emt 0:01:03]} 38. f3 {[%emt 0:04:27]} f4 {[%emt 0:01:24]} 39. Nf1 {[%emt 0:01:00]} Bf8 {[%emt 0:02:01]} 40. Be1 $2 {[%emt 0:00:01]} (40. Kf2) 40... Bc5+ $1 $19 {[%emt 0:11:08]} 41. Bf2 {[%emt 0:00:02] [#]} Bxf2+ $1 {[%emt 0:00:03]} 42. Kxf2 {[%emt 0:00:08] [#]} Bxf1 $1 {[%emt 0:00:01]} 43. Kxf1 {[%emt 0:00:16] KP-KP} Kd5 {[%emt 0:00:01]} 44. b3 {[%emt 0:00:23]} (44. a4 $142 Kc4 45. a5) 44... e4 {[%emt 0:00:20]} 45. fxe4+ {[%emt 0:02:28]} Kxe4 {[%emt 0:00:47] Hoping for ...Kd3.} 46. Ke2 {[%emt 0:00:01]} g5 {[%emt 0:00:22]} 47. a4 {[%emt 0:00:41]} h5 $2 {[%emt 0:00:28]} (47... b6 $19 48. Kf2 Kd3) 48. b4 $2 {[%emt 0:00:59][%mdl 8192]} (48. a5 $11) 48... b5 {[%emt 0:02:07]} 49. axb5 {[%emt 0:01:09]} axb5 {[%emt 0:00:05]} 50. c4 {[%emt 0:00:32]} bxc4 {[%emt 0:00:04]} 51. b5 {[%emt 0:00:07]} Kd5 {[%emt 0:00:04]} 52. Kf3 {[%emt 0:00:36]} Kc5 {[%emt 0:01:11]} 53. h4 {[%emt 0:00:04]} c3 {[%emt 0:00:03]} (53... Kxb5 54. hxg5 c3 55. Ke2 $11) 54. Ke2 {[%emt 0:00:26]} gxh4 {[%emt 0:00:25]} ({Worse is} 54... Kxb5 55. hxg5 c2 56. Kd2 $11) 55. Kd3 {[%emt 0:00:07]} f3 {[%emt 0:00:05]} 0-1

[Event "29th Bosnjaci Open 2025"]
[Site "Bosnjaci"]
[Date "2025.01.04"]
[Round "2.3"]
[White "Pap, Misa"]
[Black "Tomas, Ante"]
[Result "1-0"]
[ECO "B11"]
[WhiteElo "2436"]
[BlackElo "2084"]
[Annotator "TA"]
[PlyCount "107"]
[EventDate "2025.01.04"]
[EventType "swiss"]
[EventCountry "CRO"]
[SourceTitle "playchess.com"]
[Source "ChessBase"]
[SourceQuality "1"]
[TimeControl "5400+30"]

{[%evp 10,107,21,27,26,19,31,19,14,22,17,0,47,0,4,8,13,0,41,31,30,6,52,60,112,125,111,110,93,117,93,114,117,116,110,117,114,112,109,116,116,109,113,120,94,70,70,72,162,39,39,0,162,156,277,267,267,266,237,229,318,318,318,318,295,277,318,303,284,271,265,232,812,778,1106,1098,1099,1097,1033,1044,1018,1018,975,950,935,935,923,760,847,656,1006,555,7720,5595,29964,29965,29978,29979,29997,213]} 1. e4 {[%emt 0:02:54]} c6 {[%emt 0:00:35]} 2. Nc3 {[%emt 0:01:27]} d5 {[%emt 0:00:07]} 3. Nf3 {[%emt 0:00:14]} dxe4 {[%emt 0:00:07]} 4. Nxe4 {[%emt 0:00:05]} Nf6 {[%emt 0:00:13]} 5. Qe2 {[%emt 0:00:05]} Nxe4 {[%emt 0:00:16]} 6. Qxe4 {[%emt 0:00:03]} Nd7 {[%emt 0:00:22]} 7. Bc4 {[%emt 0:00:31]} Nf6 {[%emt 0:00:08] [#]} 8. Ne5 $1 {[%emt 0:00:36][%csl Ge5][%cal Rc4f7]} e6 {[%emt 0:00:02]} 9. Qe2 {[%emt 0:00:24]} b5 {[%emt 0:01:47]} 10. Bb3 {[%emt 0:03:31]} (10. Nxc6 Qc7 11. Bd3 (11. Bxb5 $2 a6 $17) 11... Bb7 $15 (11... Qxc6 $2 12. Bxb5 $18)) 10... Bd6 {[%emt 0:02:30]} (10... Qc7 $11) 11. O-O {[%emt 0:02:09]} O-O {[%emt 0:01:21]} 12. d4 {[%emt 0:00:16]} ({Much weaker is} 12. Nxc6 Qc7 13. Nd4 Bxh2+ 14. Kh1 Bb7 $15) 12... Qc7 {[%emt 0:05:31]} 13. Bf4 {[%emt 0:00:19]} c5 {[%emt 0:10:46]} 14. dxc5 {[%emt 0:00:33]} Qxc5 {[%emt 0:00:34]} 15. Rad1 {[%emt 0:03:31][%cal Oe5d7]} (15. Rfd1 $5 Bb8 16. a4 $14) 15... Nd5 {[%emt 0:19:03]} (15... Bc7 $11) 16. Bg3 $14 {[%emt 0:07:25]} Rd8 {[%emt 0:07:33] [#]} (16... b4 $14) 17. Nxf7 $1 {[%emt 0:07:36][%mdl 512]} Kxf7 {[%emt 0:05:40]} 18. Qf3+ {[%emt 0:03:08]} Kg8 {[%emt 0:17:15] ...Bb7 is the strong threat.} 19. Rxd5 {[%emt 0:08:23]} exd5 {[%emt 0:02:52]} 20. Bxd5+ {[%emt 0:00:19][%cal Bb3d5,Bd5a8,Ba8e4,Be4h7][%mdl 32]} Be6 {[%emt 0:00:10]} 21. Bxa8 {[%emt 0:01:30]} Bxg3 {[%emt 0:00:39]} 22. hxg3 {[%emt 0:00:11]} Qxc2 {[%emt 0:02:24]} 23. Be4 $1 {[%emt 0:04:58]} Qxb2 {[%emt 0:01:33][%cal Og7g6] [#]} 24. Bxh7+ $1 {[%emt 0:02:44][%mdl 512]} Kxh7 {[%emt 0:01:03]} 25. Qe4+ {[%emt 0:00:08]} Kg8 {[%emt 0:01:01]} 26. Qxe6+ $16 {[%emt 0:00:06][%mdl 4096] Endgame KQR-KQR. White is a pawn up.} Kh8 {[%emt 0:01:13]} 27. Qe7 {[%emt 0:07:03][%csl LRa7,LRd8]} Qd4 {[%emt 0:00:17]} 28. Re1 $36 {[%emt 0:00:09][%mdl 2048] Keeping Black busy.} a6 {[%emt 0:12:01]} (28... Rd5 $16 {keeps fighting.}) 29. Re6 {[%emt 0:05:38]} (29. Re4 $18 Qd5 30. Re5) 29... Qd1+ $14 {[%emt 0:01:05]} 30. Re1 {[%emt 0:03:23]} (30. Kh2 $14 Qh5+ 31. Kg1 Rd1+ 32. Re1) 30... Qd4 $1 $18 {[%emt 0:02:12]} 31. Re5 {[%emt 0:00:54]} Rd6 {[%emt 0:02:24]} (31... Qd7 $16) 32. Qf8+ {[%emt 0:02:13]} Kh7 {[%emt 0:00:06] [#] ( -> ...Qd1+)} 33. Qf5+ $1 {[%emt 0:00:07]} Rg6 {[%emt 0:03:37] [#]} 34. Re6 $1 {[%emt 0:00:48] Against Qd6} Qd1+ {[%emt 0:00:20]} 35. Kh2 {[%emt 0:00:07]} Qg4 {[%emt 0:00:08]} 36. Qxg4 $1 {[%emt 0:00:10]} Rxg4 {[%emt 0:00:02]} 37. Rxa6 {[%emt 0:00:08] KR-KR. White is two pawns up.} Rc4 {[%emt 0:00:40]} 38. f3 {[%emt 0:01:14][%cal Bf2f3,Bf3f4,Bf4f5][%mdl 32]} Rc2 {[%emt 0:01:18]} 39. Kh3 {[%emt 0:00:06]} Rb2 {[%emt 0:00:32]} 40. f4 {[%emt 0:07:07]} b4 $2 {[%emt 0:00:07]} (40... Rf2 41. Ra5 b4) 41. g4 {[%emt 0:00:10]} b3 {[%emt 0:00:30]} 42. axb3 {[%emt 0:00:06]} Rxb3+ {[%emt 0:00:01]} 43. g3 {[%emt 0:01:20]} Rb5 {[%emt 0:01:24]} 44. f5 {[%emt 0:01:38]} Rc5 {[%emt 0:00:25]} 45. Kh4 {[%emt 0:00:08]} Rb5 {[%emt 0:00:16]} 46. Ra8 {[%emt 0:01:26]} Rc5 {[%emt 0:00:33]} 47. Rf8 {[%emt 0:00:17]} Ra5 {[%emt 0:00:35]} 48. Rf7 {[%emt 0:06:02] and g5 should not be overlooked} Kg8 {[%emt 0:00:22]} 49. Rb7 {[%emt 0:00:16]} Kh7 {[%emt 0:00:05]} 50. Rb1 {[%emt 0:02:39]} Kh6 {[%emt 0:01:11]} 51. g5+ {[%emt 0:00:15]} Kh7 {[%emt 0:00:00]} 52. g4 {[%emt 0:00:44]} Ra4 {[%emt 0:01:03]} 53. Rb7 {[%emt 0:00:31]} Kh8 {[%emt 0:00:30]} 54. Rb8+ {[%emt 0:00:13]} 1-0

[Event "29th Bosnjaci Open 2025"]
[Site "Bosnjaci"]
[Date "2025.01.04"]
[Round "2.4"]
[White "Caric, Mato"]
[Black "Zaja, Ivan"]
[Result "0-1"]
[ECO "C11"]
[WhiteElo "2080"]
[BlackElo "2418"]
[Annotator "TA"]
[PlyCount "40"]
[EventDate "2025.01.04"]
[EventType "swiss"]
[EventCountry "CRO"]
[SourceTitle "playchess.com"]
[Source "ChessBase"]
[SourceQuality "1"]
[TimeControl "5400+30"]

{[%evp 15,40,-1,7,-62,-35,-48,-7,-16,1,-68,-25,-85,-77,-62,-37,-39,-36,-136,-145,-237,-255,-251,-244,-260,-257,-243,-255]} 1. e4 {[%emt 0:00:05][%cal Be2e4,Be4e5][%mdl 32]} e6 {[%emt 0:00:28]} 2. d4 {[%emt 0:01:29]} d5 {[%emt 0:00:09]} 3. Nd2 {[%emt 0:00:00]} Nf6 {[%emt 0:00:07]} 4. e5 {[%emt 0:00:44]} Nfd7 {[%emt 0:00:05]} 5. f4 {[%emt 0:03:38]} c5 {[%emt 0:00:11]} 6. Ndf3 {[%emt 0:00:28]} Nc6 {[%emt 0:00:36]} 7. c3 {[%emt 0:00:37]} Qb6 {[%emt 0:00:31]} 8. Ne2 {[%emt 0:01:14]} Be7 {[%emt 0:00:28]} 9. g4 {[%emt 0:13:51]} (9. a3 $11) 9... f6 $1 $15 {[%emt 0:04:02] Black is more active.} 10. Qb3 {[%emt 0:22:41]} Qxb3 {[%emt 0:19:07]} 11. axb3 {[%emt 0:01:11] The position is equal.} b6 {[%emt 0:00:03]} 12. Kd2 {[%emt 0:04:36]} (12. exf6 $11 Nxf6 13. g5) 12... O-O {[%emt 0:06:47]} 13. Bg2 {[%emt 0:02:29] [#]} (13. Kc2 $11) 13... fxe5 $1 $17 {[%emt 0:00:23]} 14. dxe5 {[%emt 0:00:55]} Na5 {[%emt 0:09:21]} 15. Kc2 {[%emt 0:01:47]} Bb7 {[%emt 0:00:55][%cal Od5d4]} 16. Ng3 {[%emt 0:00:48] [#]} (16. Rg1 $15) 16... d4 $1 {[%emt 0:03:31][%cal Od4d3] ...d3+! is the strong threat.} 17. Rg1 {[%emt 0:01:55] [#]} (17. cxd4 $2 {perishes.} cxd4 18. b4 Bxb4 $19) (17. Rd1 $17) 17... d3+ $1 $19 {[%emt 0:01:37][%mdl 512]} 18. Kxd3 {[%emt 0:02:57]} Nxb3 {[%emt 0:00:17]} 19. Rb1 {[%emt 0:00:08]} Nxc1+ {[%emt 0:00:37]} 20. Rbxc1 {[%emt 0:00:01]} Rxf4 {[%emt 0:00:15] Weighted Error Value: White=0.53/Black=0.09 (flawless) .  Mistake:       	White=4     	---        Inaccurate:     	---       	Black=2      OK:         	White=2     	Black=2      Best:        	White=1     	Black=1      Strong:       	---       	Black=3      Brilliant:      	---       	Black=1} 0-1